Workbook

Sheet Sheet1
C1: January offer | L1: Current offer
A2: Enter current step | C2: 15
A3: Now enter your salary amounts per step in grey boxes in both charts
A4: To enter salary for a half step, in the cell, type =average( lower salary amount,higher salary amount)
A5: Year | B5: Step | C5: Salary | D5: Gross Paycheck | E5: # of check | F5: Total income | G5: School year income | I5: Year | J5: Step | K5: Salary | L5: Gross Paycheck | M5: # of checks | N5: Total income | O5: School year income | P5: Difference
A6: 23 | B6: =C2 -> 15 | C6: 90387 | D6: =C6/24 -> 3766.125 | E6: 8 | F6: =E6*D6 -> 30129 | I6: 19/20 | J6: =C2 -> 15 | K6: 41233 | L6: =K6/24 -> 1718.041667 | M6: 24 | N6: =M6*L6 -> 41233 | O6: =N6+N10 -> 41681.18478 | P6: =O6-G7 -> -20822.14855
A7: 20 | B7: =B6+1.5 -> 16.5 | C7: =AVERAGE(46922,50201) -> 48561.5 | D7: =C7/24 -> 2023.395833 | E7: 16 | F7: =E7*D7 -> 32374.33333 | G7: =SUM(F6:F7) -> 62503.33333 | I7: 20/21 | J7: =J6+2.5 -> 17.5 | K7: =AVERAGE(50703,53778) -> 52240.5 | L7: =K7/24 -> 2176.6875 | M7: 24 | N7: =M7*L7 -> 52240.5 | O7: =N7 -> 52240.5 | P7: =O7-G8 -> 517
A8: 20/21 | B8: =B7+1 -> 17.5 | C8: =AVERAGE(50201,53246) -> 51723.5 | D8: =C8/24 -> 2155.145833 | E8: 24 | F8: 51723.5 | G8: =F8 -> 51723.5 | I8: 21 | J8: =J7+1 -> 18.5 | K8: =AVERAGE(53778,56303) -> 55040.5 | L8: =K8/24 -> 2293.354167 | M8: 6 | N8: 13760.125
A9: 21 | B9: =B8+1 -> 18.5 | C9: =AVERAGE(53246,55746) -> 54496 | D9: =C9/24 -> 2270.666667 | E9: 8 | F9: 18165.33333 | I9: 22 | J9: =J8+0.5 -> 19 | K9: 56303 | L9: =K9/24 -> 2345.958333 | M9: 18 | N9: 42227.25 | O9: =N8+N9 -> 55987.375 | P9: =O9-G10 -> 658.0416667
A10: 22 | B10: =B9+0.5 -> 19 | C10: 55746 | D10: =C10/24 -> 2322.75 | E10: 16 | F10: 37164 | G10: =F9+F10 -> 55329.33333 | I10: Furlough payment | N10: =(K6/184)*2 -> 448.1847826
D11: =F11/E11 -> 2354.946759 | E11: =SUM(E6:E10) -> 72 | F11: =SUM(F6:F10) -> 169556.1667 | G11: =SUM(G7:G10) -> 169556.1667 | K11: avg check | L11: =N11/M11 -> 2075.845486 | M11: =SUM(M6:M9) -> 72 | N11: =SUM(N6:N9) -> 149460.875 | O11: =SUM(O6:O9) -> 149909.0598 | P11: =SUM(P6:P9) -> -19647.10688
A12: Enter in values for the grey boxes only
A32: Paychecks
A33: Jan | B33: 2
A34: Feb | B34: 2
A35: Mar | B35: 2
A36: Apr | B36: 2
A37: May | B37: 2
A38: Jun | B38: 2
A39: Jul | B39: 2
A40: Aug | B40: 2
A41: Sep | B41: 2
A42: Oct | B42: 2
A43: Nov | B43: 2
A44: Dec | B44: 2
B45: =SUM(B33:B44) -> 24

Sheet Sheet2

Sheet Sheet3
